bitfinex-derivatives/quotes_BTCF0:USTF0_20250108
["timestamp","ask_amount","ask_price","bid_price","bid_amount"]
[1736349033163,0.001,95718.0,95716.0,0.3608]
[1736349033366,0.05325,95718.0,95716.0,0.3608]
[1736349034175,0.05425,95718.0,95716.0,0.3608]
[1736349034475,0.002,95718.0,95717.0,0.05225]
[1736349034867,0.001,95718.0,95716.0,0.3608]
[1736349035376,0.053249,95718.0,95716.0,0.3608]
[1736349035775,0.3608,95717.0,95701.0,0.1337]
[1736349036072,0.052255,95707.0,95704.0,0.3608]
[1736349036279,0.002,95718.0,95714.0,0.052251]
[1736349036868,0.002,95718.0,95715.0,0.3608]
[1736349037072,0.002,95718.0,95717.0,0.05225]
[1736349037871,0.002,95718.0,95715.0,0.3608]
[1736349037872,0.001,95718.0,95715.0,0.3608]
[1736349038074,0.05225,95716.0,95715.0,0.3608]
[1736349038779,0.001,95718.0,95715.0,0.3608]
[1736349038780,0.002,95718.0,95715.0,0.3608]
[1736349038979,0.05225,95716.0,95715.0,0.3608]
[1736349039369,0.052257,95704.0,95703.0,0.60763594]
[1736349039574,0.052257,95704.0,95703.0,0.60703594]
[1736349039775,0.001,95718.0,95703.0,0.60703594]
[1736349040085,0.002,95718.0,95712.0,0.3608]
[1736349040272,0.052252,95713.0,95712.0,0.3608]
[1736349040882,0.001,95716.0,95712.0,0.3608]
[1736349041286,0.001,95716.0,95715.0,0.052251]
[1736349041478,0.001,95718.0,95717.0,0.05225]
[1736349041782,0.052239,95737.0,95733.0,0.052241]
[1736349042077,0.052239,95737.0,95736.0,0.3608]
[1736349042474,0.052243,95730.0,95728.0,0.3608]
[1736349043173,0.01643089,95738.0,95722.0,0.36717467]
[1736349043477,0.052245,95726.0,95724.0,0.30931431]
[1736349043781,0.05224,95735.0,95730.0,0.052243]
[1736349043970,0.01643089,95738.0,95725.0,0.3608]
[1736349044171,0.052239,95737.0,95733.0,0.3608]
[1736349044379,0.053239,95737.0,95733.0,0.413041]
[1736349044579,0.05224,95736.0,95733.0,0.413041]
[1736349044781,0.001,95737.0,95733.0,0.3608]
[1736349044974,0.001,95735.0,95734.0,0.52203544]
[1736349045373,0.01643089,95738.0,95737.0,0.052239]
[1736349045671,0.01643089,95738.0,95737.0,0.10007974]
[1736349046370,0.06866889,95738.0,95737.0,0.04784074]
[1736349046879,0.06866889,95738.0,95737.0,0.88971236]
[1736349047180,0.06866889,95738.0,95737.0,0.84187162]
[1736349047574,0.06866889,95738.0,95737.0,0.88975389]
[1736349047773,0.06966889,95738.0,95737.0,0.84187162]
[1736349048073,0.06950033,95738.0,95737.0,0.42502834]
[1736349048276,0.07050033,95738.0,95737.0,0.42602834]
[1736349048780,0.052241,95734.0,95733.0,0.37207718]
[1736349048977,0.052244,95728.0,95727.0,0.31035442]
[1736349049173,0.05232119,95728.0,95727.0,0.31035442]
[1736349049768,0.05232119,95728.0,95727.0,0.29191443]
[1736349049972,0.05225,95717.0,95700.0,0.00056]
[1736349050167,0.05225,95717.0,95685.0,0.42918795]
[1736349050168,0.052261,95698.0,95685.0,0.42918795]
[1736349050471,0.052256,95707.0,95699.0,0.052259]
[1736349050670,0.052254,95710.0,95700.0,0.0479899]
[1736349050881,0.37366636,95717.0,95701.0,0.0479899]
[1736349050882,0.052255,95708.0,95701.0,0.0479899]
[1736349051079,0.052255,95708.0,95705.0,0.3608]
[1736349051277,0.37366636,95717.0,95705.0,0.3608]
[1736349051477,0.37366636,95717.0,95696.0,0.3608]
[1736349051680,0.05226,95698.0,95697.0,0.04799909]
[1736349051880,0.3608,95706.0,95688.0,0.052265]
[1736349052080,0.3608,95706.0,95694.0,0.04799799]
[1736349052382,0.052262,95695.0,95689.0,0.052265]
[1736349052582,0.052262,95694.0,95689.0,0.052265]
[1736349052775,0.052262,95694.0,95693.0,0.04956796]
[1736349052982,0.05233919,95694.0,95693.0,0.04956796]
[1736349053186,0.05233919,95694.0,95693.0,0.00156755]
[1736349053481,7.719e-05,95694.0,95672.0,0.3608]
[1736349053782,0.3608,95688.0,95673.0,0.04801017]
[1736349053979,0.052272,95676.0,95674.0,0.04801017]
[1736349054184,0.052272,95676.0,95675.0,0.04801017]
[1736349054487,0.1341,95687.0,95675.0,0.04801017]
[1736349054780,0.052271,95679.0,95676.0,0.04801017]
[1736349054974,0.052271,95679.0,95677.0,0.04801017]
[1736349055170,0.052271,95679.0,95678.0,0.04801017]
[1736349055374,0.1341,95687.0,95672.0,0.413074]
[1736349055578,0.1341,95687.0,95673.0,0.04796268]
[1736349055885,0.1341,95687.0,95674.0,0.04796268]
[1736349055886,0.052272,95677.0,95674.0,0.04796268]
[1736349056077,0.052272,95677.0,95676.0,0.001]
[1736349056577,0.051277,95667.0,95661.0,0.0524124]
[1736349056778,0.052279,95664.0,95661.0,0.0001324]
[1736349058881,0.053279,95664.0,95661.0,0.0001324]
[1736349059291,0.001,95664.0,95663.0,0.4251138]
[1736349059581,0.001,95677.0,95676.0,0.052272]
[1736349059789,0.01286987,95679.0,95677.0,0.052272]
[1736349059989,0.3608,95701.0,95677.0,0.3608]
[1736349060174,0.413059,95701.0,95692.0,0.052263]
[1736349060483,0.052263,95693.0,95691.0,0.3608]
[1736349060785,0.052265,95690.0,95682.0,0.052269]
[1736349060996,0.052265,95690.0,95687.0,0.3608]
[1736349061178,0.052265,95689.0,95687.0,0.3608]
[1736349061690,0.3608,95701.0,95687.0,0.3608]
[1736349061995,0.052265,95689.0,95687.0,0.3608]
[1736349062486,0.052267,95686.0,95676.0,0.3608]
[1736349062682,0.001,95689.0,95676.0,0.3608]
[1736349062883,0.052268,95684.0,95676.0,0.3608]
[1736349063085,0.052271,95679.0,95671.0,0.052275]
[1736349063390,0.052271,95679.0,95678.0,0.3608]
[1736349063986,0.3608,95685.0,95668.0,0.3608]
[1736349064485,0.01418675,95689.0,95679.0,0.3608]
[1736349064787,0.3608,95685.0,95676.0,0.009]
[1736349064976,0.001,95686.0,95676.0,0.3698]
[1736349065183,0.052271,95679.0,95676.0,0.3698]
[1736349065384,0.001,95685.0,95676.0,0.3608]
[1736349065591,0.001,95685.0,95680.0,0.05227]
[1736349065786,0.052266,95687.0,95680.0,0.05227]
[1736349065991,0.74916657,95795.0,95680.0,0.05227]
[1736349065992,0.3608,95723.0,95712.0,0.052253]
[1736349066189,0.3608,95747.0,95712.0,0.3608]
[1736349066483,0.19997919,95727.0,95713.0,0.2827]
[1736349066692,0.01266505,95727.0,95706.0,0.3608]
[1736349066881,0.01266505,95727.0,95694.0,0.3608]
[1736349066882,0.3608,95720.0,95694.0,0.3608]
[1736349067076,0.052253,95711.0,95703.0,0.413057]
[1736349067292,0.052255,95708.0,95703.0,0.3608]
[1736349067586,0.3608,95707.0,95694.0,0.3608]
[1736349067781,0.052258,95703.0,95694.0,0.3608]
[1736349067975,0.052258,95702.0,95694.0,0.3608]
[1736349068190,0.052258,95702.0,95696.0,0.052261]
[1736349068486,0.052258,95703.0,95698.0,0.3608]
[1736349068789,0.01587652,95703.0,95698.0,0.3608]
[1736349068987,0.01957852,96654.0,95702.0,0.413058]
[1736349068988,0.3608,95730.0,95702.0,0.413058]
[1736349069190,0.052245,95726.0,95716.0,0.3608]
[1736349069390,0.001,95727.0,95724.0,0.3608]
[1736349069587,0.001,95727.0,95726.0,0.052245]
[1736349069983,0.01612477,95729.0,95726.0,0.052245]
[1736349070184,0.052243,95730.0,95724.0,0.3608]
[1736349070384,0.3608,95738.0,95724.0,0.3608]
[1736349070790,0.001,95727.0,95724.0,0.3608]
[1736349071292,0.001,95727.0,95724.0,0.413046]
[1736349071682,0.001,95727.0,95716.0,0.3608]
[1736349071683,0.001,95727.0,95712.0,0.004]
[1736349071879,0.3608,95721.0,95712.0,0.004]
[1736349072084,0.3608,95721.0,95695.0,0.3608]
[1736349072290,0.3608,95721.0,95713.0,0.052252]
[1736349072594,0.3608,95721.0,95695.0,0.3608]
[1736349072897,0.052248,95721.0,95714.0,0.052251]
[1736349073497,0.06845237,95721.0,95713.0,0.001]
[1736349073790,0.01620437,95721.0,95720.0,0.052248]
[1736349073989,0.01620437,95721.0,95715.0,0.3608]
[1736349073990,0.3608,95740.0,95730.0,0.052243]
[1736349074191,0.05224,95735.0,95730.0,0.052243]
[1736349074395,0.51792183,95740.0,95723.0,0.3608]
[1736349074396,0.36156,95740.0,95723.0,0.3608]
[1736349074595,0.37689247,95740.0,95723.0,0.3608]
[1736349074795,0.37689247,95740.0,95737.0,0.052239]
[1736349074983,0.01609247,95740.0,95737.0,0.052239]
[1736349075186,0.18731414,95747.0,95733.0,0.32980836]
[1736349075187,0.3608,95743.0,95733.0,0.32980836]
[1736349075395,0.052243,95731.0,95723.0,0.052246]
[1736349075590,0.3608,95725.0,95720.0,0.009]
[1736349075790,0.3608,95725.0,95705.0,0.3608]
[1736349076096,0.3608,95713.0,95695.0,0.052262]
[1736349076302,0.3608,95704.0,95695.0,0.052262]
[1736349076597,0.052256,95707.0,95699.0,0.05226]
[1736349076788,0.263,95712.0,95699.0,0.05226]
[1736349076985,0.27962116,95712.0,95693.0,0.052263]
[1736349077191,0.052259,95700.0,95693.0,0.052263]
[1736349077495,0.27962116,95712.0,95682.0,0.052269]
[1736349077496,0.3608,95695.0,95682.0,0.052269]
[1736349077797,0.3608,95695.0,95680.0,0.3608]
[1736349077994,0.052266,95689.0,95680.0,0.3608]
[1736349078194,0.3608,95695.0,95680.0,0.3608]
[1736349078498,0.3608,95706.0,95693.0,0.009]
[1736349078799,0.052261,95697.0,95693.0,0.009]
[1736349079098,0.052262,95696.0,95686.0,0.05383469]
[1736349079400,0.3608,95698.0,95686.0,0.05383469]
[1736349079401,0.052263,95693.0,95686.0,0.01056769]
[1736349079794,0.048266,95688.0,95686.0,0.01056769]
[1736349080588,0.048266,95688.0,95686.0,0.01556769]
[1736349081203,0.01625888,95688.0,95680.0,0.3608]
[1736349081399,0.3608,95690.0,95661.0,0.3609324]
[1736349081400,0.052266,95689.0,95686.0,0.005]
[1736349081596,0.052266,95687.0,95686.0,0.005]
[1736349081790,0.052266,95687.0,95686.0,0.014]
[1736349082192,0.052271,95679.0,95672.0,0.3608]
[1736349082389,0.043271,95679.0,95672.0,0.3608]
[1736349082695,0.052272,95676.0,95672.0,0.3608]
[1736349083094,0.043272,95676.0,95672.0,0.3608]
[1736349083290,0.3608,95676.0,95661.0,0.3609324]
[1736349083502,0.052277,95669.0,95661.0,0.3609324]
[1736349084000,0.052277,95669.0,95648.0,0.0015683]
[1736349084001,0.3608,95668.0,95653.0,0.3608]
[1736349084201,0.052284,95654.0,95648.0,0.0015683]
[1736349084404,0.3608,95658.0,95648.0,0.0015683]
[1736349084405,0.3608,95649.0,95648.0,0.0015683]
[1736349085011,0.3558,95649.0,95648.0,0.0015683]
[1736349085204,0.35589651,95649.0,95648.0,0.0015683]
[1736349085805,0.35589651,95649.0,95642.0,0.3608]
[1736349086002,0.052291,95642.0,95634.0,0.052295]
[1736349086195,0.35689651,95649.0,95634.0,0.052295]
[1736349086401,0.052293,95639.0,95622.0,0.1434]
[1736349086602,0.052293,95639.0,95632.0,0.052296]
[1736349087210,0.052293,95639.0,95633.0,0.052295]
[1736349087706,0.15712183,95643.0,95622.0,0.1434]
[1736349087903,0.001,95639.0,95622.0,0.1434]
[1736349088101,0.001,95639.0,95624.0,0.0523]
[1736349088303,0.001,95639.0,95622.0,0.1434]
[1736349088502,0.052294,95636.0,95630.0,0.052297]
[1736349088811,0.052296,95633.0,95623.0,0.413101]
[1736349089010,0.052302,95622.0,95621.0,0.00209159]
[1736349089312,0.413102,95622.0,95621.0,0.00209159]
[1736349090104,0.3608,95622.0,95621.0,0.00209159]
[1736349090309,0.052299,95628.0,95621.0,0.00209159]
[1736349090806,0.3608,95630.0,95621.0,0.00209159]
[1736349091010,0.052302,95622.0,95621.0,0.00209159]
[1736349091209,0.054302,95622.0,95621.0,0.00209159]
[1736349091510,0.052305,95617.0,95613.0,0.00156872]
[1736349091701,0.052306,95615.0,95613.0,0.00156872]
[1736349092414,0.3608,95614.0,95613.0,0.00156872]
[1736349093112,0.4985,95614.0,95613.0,0.00156872]
[1736349093317,0.3608,95614.0,95613.0,0.00156872]
[1736349093498,0.1377,95621.0,95613.0,0.00156872]
[1736349093699,0.001,95615.0,95613.0,0.00156872]
[1736349093904,0.052306,95614.0,95613.0,0.00156872]
[1736349094210,0.413106,95614.0,95613.0,0.00156872]
[1736349094401,0.052313,95601.0,95585.0,0.052322]
[1736349094606,0.3608,95597.0,95587.0,0.052321]
[1736349094906,0.413116,95597.0,95587.0,0.052321]
[1736349095104,0.3608,95597.0,95589.0,0.05232]
[1736349095304,8.937e-05,95596.0,95582.0,0.3608]
[1736349095506,8.937e-05,95596.0,95589.0,0.05232]
[1736349095812,8.937e-05,95596.0,95582.0,0.413123]
[1736349096020,0.05232,95589.0,95582.0,0.3608]
[1736349096509,0.3608,95589.0,95576.0,0.052327]
[1736349096707,0.1335,95595.0,95562.0,0.3608]
[1736349096914,0.1335,95595.0,95579.0,0.413125]
[1736349097408,0.001,95589.0,95579.0,0.413125]
[1736349097600,0.3608,95585.0,95579.0,0.052325]
[1736349097800,0.3608,95585.0,95561.0,0.3608]
[1736349098000,0.3608,95585.0,95578.0,0.3608]
[1736349098205,0.001,95589.0,95578.0,0.3608]
[1736349098408,0.05232,95589.0,95580.0,0.052325]
[1736349098611,0.052321,95587.0,95580.0,0.052325]
[1736349098813,0.052321,95588.0,95578.0,0.413125]
[1736349099009,0.053322,95585.0,95578.0,0.413125]
[1736349099412,0.052325,95580.0,95578.0,0.3608]
[1736349099607,0.053322,95585.0,95578.0,0.3608]
[1736349099812,0.001,95585.0,95583.0,0.052323]
[1736349100012,0.002,95585.0,95584.0,0.1312]
[1736349100411,0.054322,95585.0,95584.0,0.1312]
[1736349100621,0.001,95585.0,95584.0,0.1312]
[1736349101310,0.052309,95609.0,95595.0,0.052317]
[1736349101513,0.052312,95605.0,95604.0,0.052311]
[1736349102511,0.052313,95603.0,95601.0,0.3608]
[1736349103615,0.00010643,95605.0,95593.0,0.3608]
[1736349103810,0.00110643,95605.0,95588.0,0.3608]
[1736349104321,0.00110643,95605.0,95603.0,0.052312]
[1736349104615,0.001,95603.0,95598.0,0.3608]
[1736349104817,0.052314,95600.0,95598.0,0.3608]
[1736349105021,0.052317,95595.0,95591.0,0.052319]
[1736349105219,0.00110643,95605.0,95588.0,0.3608]
[1736349105414,0.052319,95590.0,95588.0,0.3608]
[1736349106116,0.3608,95589.0,95577.0,0.00156947]
[1736349106325,0.413126,95578.0,95566.0,0.18580861]
[1736349106617,0.052343,95547.0,95545.0,0.00220999]
[1736349106922,0.3608,95546.0,95545.0,0.00156999]
[1736349107513,0.36089581,95546.0,95545.0,0.00156999]
[1736349108525,0.36189581,95546.0,95545.0,0.00156999]
[1736349109020,0.36189581,95546.0,95526.0,0.144]
[1736349109021,0.052354,95528.0,95526.0,0.144]
[1736349109214,0.413154,95528.0,95526.0,0.144]
[1736349109417,0.052367,95502.0,95501.0,0.3608]
[1736349109722,0.052355,95526.0,95500.0,0.1]
[1736349109723,0.052368,95501.0,95500.0,0.1]
[1736349110314,0.05249349,95501.0,95500.0,0.1]
[1736349110721,0.41329349,95501.0,95500.0,0.1]
[1736349110916,0.41429349,95501.0,95500.0,0.1]
[1736349111117,0.41429349,95501.0,95483.0,0.3608]
[1736349111322,0.05238,95479.0,95478.0,0.00012547]
[1736349111522,0.3608,95484.0,95478.0,0.00012547]
[1736349111825,0.3608,95486.0,95478.0,0.00012547]
[1736349112025,0.052379,95481.0,95478.0,0.00012547]
[1736349112227,0.05238,95480.0,95478.0,4.7e-07]
[1736349113222,0.06515125,95480.0,95478.0,4.7e-07]
[1736349113423,0.05238,95480.0,95478.0,4.7e-07]
[1736349113817,0.05338,95480.0,95478.0,4.7e-07]
[1736349114020,0.00013247,95479.0,95478.0,4.7e-07]
[1736349114727,0.30013247,95479.0,95478.0,4.7e-07]
[1736349114929,0.052403,95438.0,95433.0,0.00157175]
[1736349115118,0.052399,95445.0,95433.0,0.00157175]
[1736349116029,0.3608,95446.0,95433.0,0.00157175]
[1736349116227,0.3608,95446.0,95436.0,0.3608]
[1736349116914,0.3608,95455.0,95444.0,0.3608]
[1736349117124,0.052391,95460.0,95452.0,0.3608]
[1736349117419,0.3608,95507.0,95455.0,0.3608]
[1736349117728,0.052379,95481.0,95480.0,0.15712183]
[1736349117928,0.3608,95488.0,95471.0,0.15712183]
[1736349118131,0.052382,95475.0,95471.0,0.15712183]
[1736349118434,0.3608,95508.0,95476.0,0.052382]
[1736349118634,0.3608,95499.0,95490.0,0.15712183]
[1736349118934,9.183e-05,95506.0,95497.0,0.3608]
[1736349119927,9.183e-05,95506.0,95487.0,8.06e-05]
[1736349120226,0.052374,95490.0,95487.0,8.06e-05]
[1736349120430,0.052375,95489.0,95487.0,8.06e-05]
[1736349121529,0.413175,95489.0,95487.0,8.06e-05]
[1736349122633,0.413175,95489.0,95487.0,6e-07]
[1736349122837,0.05239,95461.0,95459.0,0.36016397]
[1736349123133,0.052392,95458.0,95456.0,0.00056]
[1736349123336,0.3608,95460.0,95442.0,0.0524]
[1736349123726,0.36070146,95460.0,95442.0,0.0524]
[1736349123926,0.052397,95448.0,95443.0,0.0524]
[1736349124237,0.36070146,95460.0,95443.0,0.0524]
[1736349124429,0.052398,95447.0,95443.0,0.0524]
[1736349124638,0.3608,95452.0,95441.0,0.3608]
[1736349124836,0.3608,95452.0,95440.0,0.24340504]
[1736349124837,0.052405,95435.0,95432.0,8.451e-05]
[1736349126331,0.053405,95435.0,95432.0,8.451e-05]
[1736349127545,0.001,95435.0,95432.0,8.451e-05]
[1736349128143,0.001,95435.0,95434.0,0.3608]
[1736349128535,0.00010543,95451.0,95434.0,0.6608]
[1736349128738,0.00010543,95451.0,95450.0,0.052396]
[1736349130542,0.00010543,95451.0,95450.0,0.413196]
[1736349130931,0.00010543,95451.0,95450.0,0.052396]
[1736349133037,0.00110543,95451.0,95450.0,0.052396]
[1736349134937,0.36190543,95451.0,95431.0,0.0006]
[1736349135141,0.052405,95435.0,95431.0,0.24702253]
[1736349135342,0.3608,95440.0,95438.0,0.052402]
[1736349135542,0.052402,95440.0,95438.0,0.052402]
[1736349135934,0.052398,95446.0,95444.0,0.052399]
[1736349136348,0.052401,95441.0,95439.0,0.3608]
[1736349136639,0.052398,95448.0,95446.0,0.052398]
[1736349136938,0.01378718,95451.0,95450.0,0.052396]
[1736349137346,0.3608,95481.0,95450.0,0.3]
[1736349137530,0.3608,95481.0,95479.0,0.05238]
[1736349137845,0.3608,95495.0,95494.0,0.052372]
[1736349138033,0.01239273,95495.0,95494.0,0.052372]
[1736349138229,0.1545611,95504.0,95502.0,0.052367]
[1736349138442,7.722e-05,95503.0,95502.0,0.052367]
[1736349140344,0.00107722,95503.0,95497.0,0.3608]
[1736349140543,0.05237,95498.0,95494.0,0.052372]
[1736349140745,0.00107722,95503.0,95497.0,0.05237]
[1736349140946,0.00107722,95503.0,95498.0,0.052369]
[1736349141141,0.00107722,95503.0,95502.0,0.052367]
[1736349142039,0.00107722,95503.0,95494.0,0.052372]
[1736349142243,0.052372,95494.0,95493.0,0.21614816]
[1736349142543,0.052372,95494.0,95493.0,0.1945952]
[1736349143447,0.3608,95495.0,95494.0,0.052372]
[1736349143745,0.00107722,95503.0,95487.0,0.3608]
[1736349143746,0.00107722,95503.0,95502.0,0.052367]
[1736349143947,0.00107722,95503.0,95502.0,0.10034408]
[1736349144142,0.12560534,95517.0,95516.0,0.05236]
[1736349144143,0.12484534,95517.0,95516.0,0.05236]
[1736349145045,0.12492877,95517.0,95516.0,0.05236]
[1736349145247,0.01236999,95517.0,95516.0,0.05236]
[1736349145448,0.01236999,95517.0,95509.0,0.3608]
[1736349145745,0.01236999,95517.0,95513.0,0.052361]
[1736349145949,0.3608,95515.0,95499.0,0.413169]
[1736349146144,0.052363,95511.0,95502.0,0.052367]
[1736349146346,0.052363,95510.0,95503.0,0.052367]
[1736349146748,0.052364,95508.0,95503.0,0.052367]
[1736349146943,0.052361,95514.0,95500.0,0.3608]
[1736349147145,0.3608,95515.0,95508.0,0.052364]
[1736349147447,0.01336999,95517.0,95515.0,0.05236]
[1736349147845,0.01336999,95517.0,95516.0,0.04794368]
[1736349148453,0.01336999,95517.0,95515.0,0.05236]
[1736349148645,0.052368,95501.0,95500.0,9.139e-05]
[1736349148843,0.052368,95501.0,95474.0,0.3608]
[1736349148844,0.3608,95501.0,95488.0,0.30873816]
[1736349149052,0.051374,95490.0,95488.0,0.08973816]
[1736349149349,0.3608,95501.0,95474.0,0.3608]
[1736349149350,0.052377,95485.0,95474.0,0.3608]
[1736349149553,0.052377,95485.0,95478.0,0.052381]
[1736349149754,0.051379,95481.0,95479.0,0.04797832]
[1736349149952,0.051379,95481.0,95475.0,0.052382]
[1736349150252,0.24358934,95500.0,95476.0,0.04797001]
[1736349150447,0.052378,95483.0,95474.0,0.413183]
[1736349150754,0.052378,95483.0,95478.0,0.052381]
[1736349150949,0.001,95485.0,95474.0,0.006]
[1736349150950,0.001,95485.0,95483.0,0.052378]
[1736349151153,0.001,95485.0,95474.0,0.006]
[1736349151154,0.001,95485.0,95477.0,0.052381]
[1736349151456,0.052379,95481.0,95478.0,0.052381]
[1736349151757,0.052379,95481.0,95479.0,0.05238]
[1736349152551,0.052381,95477.0,95474.0,0.052382]
[1736349152852,0.052382,95476.0,95475.0,0.04798712]
[1736349153156,0.052383,95474.0,95472.0,0.413184]
[1736349153551,0.3618,95481.0,95472.0,0.3608]
[1736349153754,0.052381,95478.0,95477.0,0.052381]
[1736349154155,0.3618,95481.0,95472.0,0.3608]
[1736349154349,0.052386,95469.0,95463.0,0.052389]
[1736349154554,0.052386,95469.0,95448.0,0.1363]
[1736349154755,0.052386,95469.0,95460.0,0.05239]
[1736349156059,0.052386,95469.0,95468.0,0.05395716]
[1736349156362,0.14440487,95480.0,95476.0,0.052382]
[1736349156363,0.00010487,95480.0,95476.0,0.052382]
[1736349156557,0.052381,95477.0,95476.0,0.052382]
[1736349156958,0.00010487,95480.0,95479.0,0.05238]
[1736349157451,0.00010487,95480.0,95479.0,0.41318]
[1736349157452,0.01363415,95480.0,95479.0,0.41318]
[1736349157664,0.12484534,95492.0,95491.0,0.052374]
[1736349158059,0.3608,95509.0,95489.0,0.3608]
[1736349158358,0.052369,95500.0,95499.0,0.413169]
[1736349158549,0.052366,95506.0,95505.0,0.052366]
[1736349158755,0.3734894,95509.0,95499.0,0.3608]
[1736349158756,0.0126894,95509.0,95508.0,0.052364]
[1736349158957,0.3608,95528.0,95508.0,0.46152303]
[1736349159155,0.3608,95528.0,95509.0,0.04835903]
[1736349159355,0.3608,95528.0,95499.0,0.3608]
[1736349159356,0.052363,95510.0,95505.0,0.052366]
[1736349159573,0.052363,95510.0,95492.0,0.46924]
[1736349159574,0.3608,95506.0,95500.0,0.052369]
[1736349159763,0.3608,95506.0,95492.0,0.052933]
[1736349160058,4.139e-05,95505.0,95487.0,0.3608]
[1736349160261,0.052371,95497.0,95488.0,0.10035742]
[1736349160466,0.052372,95494.0,95488.0,0.052375]
[1736349160661,0.052374,95490.0,95489.0,0.04797897]
[1736349160861,0.05238,95480.0,95479.0,0.3608]
[1736349161760,0.052386,95469.0,95468.0,0.36237116]
[1736349162154,0.052386,95469.0,95468.0,0.41042166]
[1736349162354,0.048386,95469.0,95468.0,0.00157116]
[1736349163159,0.04842739,95469.0,95468.0,0.00657116]
[1736349163659,0.052391,95459.0,95458.0,8.583e-05]
[1736349164971,0.052392,95457.0,95436.0,0.00157165]
[1736349165261,0.052399,95445.0,95436.0,0.00157165]
[1736349165567,0.3608,95453.0,95436.0,0.00157165]
[1736349165956,0.052403,95437.0,95436.0,0.00157165]
[1736349166169,0.052403,95437.0,95436.0,0.00557165]
[1736349166762,0.052403,95437.0,95415.0,0.37652]
[1736349166958,0.3608,95416.0,95400.0,0.1]
[1736349167164,0.413223,95401.0,95400.0,0.1]
[1736349168556,0.052416,95414.0,95400.0,0.1]
[1736349168760,0.37640013,95424.0,95409.0,0.3608]
[1736349168969,0.05241,95424.0,95409.0,0.3608]
[1736349169163,0.12476292,95421.0,95409.0,0.3608]
[1736349169364,0.052414,95418.0,95417.0,0.3608]
[1736349169763,0.12476292,95421.0,95417.0,0.3608]
[1736349170469,0.052409,95427.0,95417.0,0.3608]
[1736349170665,0.12476292,95433.0,95417.0,0.3608]
[1736349170964,0.052413,95420.0,95417.0,0.3608]
[1736349171268,0.052413,95419.0,95417.0,0.3608]
[1736349172968,0.052421,95405.0,95404.0,0.00064]
[1736349173156,0.052413,95419.0,95400.0,0.1]
[1736349173356,0.052423,95401.0,95400.0,0.1]
[1736349174468,0.413223,95401.0,95400.0,0.1]
[1736349174665,0.41332199,95401.0,95400.0,0.1]
[1736349174968,0.42900656,95401.0,95400.0,0.1]
[1736349176064,0.06820656,95401.0,95400.0,0.1]
[1736349176265,9.899e-05,95401.0,95400.0,0.4608]
[1736349176470,0.00409899,95401.0,95400.0,0.4608]
[1736349177979,9.899e-05,95401.0,95400.0,0.4608]
[1736349178169,0.00409899,95401.0,95400.0,0.4608]
[1736349179372,0.00409899,95401.0,95400.0,0.1]
[1736349181072,9.899e-05,95401.0,95400.0,0.1]
[1736349181574,9.899e-05,95401.0,95400.0,0.4608]
[1736349182773,0.06822822,95412.0,95411.0,0.052412]
[1736349182974,0.052412,95412.0,95411.0,0.413212]
[1736349183276,0.052412,95412.0,95411.0,0.3608]
[1736349183477,0.052403,95429.0,95411.0,0.3608]
[1736349183665,0.052409,95418.0,95413.0,0.052411]
[1736349183866,0.05241,95416.0,95412.0,0.3608]
[1736349184175,0.05241,95416.0,95414.0,0.05241]
[1736349184779,0.00010493,95417.0,95412.0,0.3608]
[1736349185075,0.1427,95440.0,95424.0,0.052405]
[1736349185264,0.052402,95429.0,95428.0,0.3608]
[1736349185577,0.052398,95437.0,95418.0,0.052408]
[1736349185772,0.052403,95429.0,95413.0,0.3608]
[1736349185978,0.0524,95434.0,95422.0,0.3608]
[1736349186273,0.052401,95431.0,95430.0,0.3608]
[1736349186668,0.052399,95436.0,95430.0,0.413202]
[1736349186866,3.6e-07,95440.0,95434.0,0.052399]
[1736349187075,3.6e-07,95440.0,95439.0,0.052397]
[1736349187376,3.6e-07,95440.0,95439.0,0.56991191]
[1736349187579,3.6e-07,95440.0,95439.0,0.86991191]
[1736349187775,0.12476292,95465.0,95464.0,0.052383]
[1736349187980,0.12476292,95465.0,95448.0,0.3608]
[1736349188171,0.3608,95463.0,95448.0,0.3608]
[1736349188483,0.052396,95440.0,95439.0,0.0001062]
[1736349188975,0.052396,95440.0,95439.0,0.0525032]
[1736349189178,0.052387,95457.0,95439.0,0.0001062]
[1736349189375,0.052387,95457.0,95445.0,0.3608]
[1736349189585,0.052393,95446.0,95445.0,0.3608]
[1736349189779,0.052376,95478.0,95445.0,0.3608]
[1736349189984,0.052386,95459.0,95458.0,0.3608]
[1736349190576,0.05239,95452.0,95448.0,0.052392]
[1736349190786,0.052391,95450.0,95448.0,0.052392]
[1736349191077,0.3608,95466.0,95439.0,0.0001062]
[1736349191078,0.3608,95457.0,95439.0,0.0001062]
[1736349191379,0.052396,95440.0,95439.0,0.0041062]
[1736349193381,0.07146459,95440.0,95439.0,0.0041062]
[1736349193883,0.06946459,95440.0,95439.0,0.0001062]
[1736349194781,0.07246459,95440.0,95439.0,0.0001062]
[1736349195087,0.02206859,95440.0,95419.0,0.00157169]
[1736349195272,0.413207,95420.0,95419.0,0.00157169]
[1736349195479,0.3608,95420.0,95396.0,0.67167316]
[1736349195673,0.052418,95401.0,95396.0,0.67167316]
[1736349195876,0.052418,95401.0,95396.0,0.31087316]
[1736349196187,0.05254042,95401.0,95396.0,0.31087316]
[1736349196776,0.05254042,95401.0,95378.0,0.41323]
[1736349196970,0.05254042,95401.0,95386.0,0.3608]
[1736349197176,0.07196274,95401.0,95386.0,0.3608]
[1736349198586,0.07496274,95401.0,95386.0,0.3608]
[1736349199888,0.052424,95390.0,95369.0,0.3608]
[1736349200090,0.052433,95374.0,95369.0,0.3608]
[1736349200383,0.052433,95374.0,95370.0,0.04804862]
[1736349200588,0.052433,95374.0,95369.0,0.3608]
[1736349201286,0.07245945,95374.0,95369.0,0.3608]